[Event "44th Chess Olympiad Open 2022"]
[Site "Chennai"]
[Date "2022.08.06"]
[Round "8.66"]
[White "Giasi, Viresh"]
[Black "Salim Mohammed, Salim Al Amri"]
[Result "1/2-1/2"]
[ECO "B34"]
[WhiteElo "2006"]
[BlackElo "1917"]
[Annotator "TA"]
[PlyCount "125"]
[EventDate "2022.07.29"]
[EventType "team-tourn"]
[EventCountry "IND"]
[SourceTitle "playchess.com"]
[Source "ChessBase"]
[SourceQuality "1"]
[WhiteTeam "Surinam"]
[BlackTeam "OMA"]
[WhiteTeamCountry "SUR"]
[TimeControl "40/5400+30:1800+30"]

{[%evp 13,125,-8,33,-5,0,0,0,-7,45,-5,58,20,78,76,64,-13,-47,-52,56,0,58,35,54,38,64,64,64,64,67,58,71,48,109,108,110,89,122,98,138,0,0,0,64,0,69,41,85,0,32,0,0,0,0,0,0,0,0,0,0,0,0,0,254,0,0,0,0,0,0,-40,0,-227,-241,-235,-249,-218,-206,-339,-355,-305,-213,-211,-243,-604,0,0,0,0,0,0,674,0,953,0,0,0,0,0,0,0,0,0,0,0,0,0,0,0,0,0,0,0,0,0]} 1. e4 {[%emt 0:00:17]} c5 {[%emt 0:00:06]} 2. Nf3 {[%emt 0:00:04]} Nc6 {[%emt 0:00:05]} 3. d4 {[%emt 0:02:20]} cxd4 {[%emt 0:00:10]} 4. Nxd4 {[%emt 0:00:02]} g6 {[%emt 0:00:19]} 5. Nxc6 {[%emt 0:02:27]} bxc6 {[%emt 0:00:27]} 6. Qd4 {[%emt 0:04:40]} Nf6 {[%emt 0:00:18]} 7. e5 {[%emt 0:06:10]} Ng8 {[%emt 0:02:52]} 8. Bc4 {[%emt 0:13:47][%cal Oc4f7] B34: Sicilian: Accelerated Dragon with 5 Nc3: sidelines.} Bg7 $1 {[%emt 0:01:48]} 9. O-O {[%emt 0:00:54]} d5 {[%emt 0:03:48]} 10. Bd3 {[%emt 0:02:59]} Qc7 {[%emt 0:03:50] [#]} ({Black should play} 10... Nh6 $11) 11. f4 $146 {[%emt 0:01:35]} (11. Re1 $14) ({Predecessor:} 11. Re1 Nh6 12. c4 O-O 13. cxd5 cxd5 14. Qxd5 Be6 15. Qf3 Ng4 16. Bf4 Rfd8 17. Qg3 {1-0 (32) Dannet,M (2190)-Le Roy,B (2075) Paris 1998}) 11... e6 {[%emt 0:00:30]} (11... f6 $11) 12. Be3 {[%emt 0:03:22]} h5 {[%emt 0:00:34]} (12... Nh6 $11 {remains equal.}) 13. b4 {[%emt 0:03:35] White is more active.} Nh6 {[%emt 0:00:47]} 14. Qc5 {[%emt 0:01:27]} (14. Qc3 $14) 14... Bf8 $11 {[%emt 0:00:31]} 15. Qc3 {[%emt 0:00:02]} Nf5 {[%emt 0:03:27]} (15... a5 $1 $15 16. bxa5 Rxa5) 16. Bc5 {[%emt 0:00:57]} (16. Bxf5 $14 gxf5 17. Nd2) 16... Bxc5+ {[%emt 0:03:42]} ({Better is} 16... a5 $1 $11) 17. Qxc5 {[%emt 0:02:04]} Qb6 {[%emt 0:00:03]} 18. Bxf5 {[%emt 0:00:28]} Qxc5+ {[%emt 0:00:20]} 19. bxc5 {[%emt 0:00:02]} gxf5 {[%emt 0:00:13]} 20. Nd2 $1 {[%emt 0:00:19]} Ba6 {[%emt 0:00:32]} 21. Rf3 {[%emt 0:00:09]} Ke7 {[%emt 0:05:56]} 22. Rb1 {[%emt 0:00:59]} Rhb8 {[%emt 0:14:10]} (22... Bb5 $14) 23. Rxb8 $16 {[%emt 0:00:57]} Rxb8 {[%emt 0:00:42][%mdl 4096] Endgame KRB-KRN} 24. Ra3 {[%emt 0:00:03]} Be2 {[%emt 0:01:18]} 25. Rxa7+ {[%emt 0:00:03]} Kf8 {[%emt 0:00:31]} 26. Nb3 {[%emt 0:06:18]} (26. Kf2 $16 Bd1 27. c4) 26... Rb4 $11 {[%emt 0:00:49]} 27. g3 {[%emt 0:03:39]} Rc4 {[%emt 0:01:34]} (27... h4 $11) 28. a4 {[%emt 0:05:45]} (28. Rc7 $14) 28... Bg4 {[%emt 0:00:25]} (28... Bd1 $1 $11) 29. a5 $1 $14 {[%emt 0:06:22]} Rxc2 {[%emt 0:00:23]} 30. a6 {[%emt 0:01:25]} (30. h3 $1 $16 Bxh3 31. a6 Rg2+ 32. Kh1) 30... Bh3 $1 {[%emt 0:00:20]} 31. Rb7 {[%emt 0:02:36] Strongly threatening a7.} Rg2+ {[%emt 0:01:22]} 32. Kf1 $1 {[%emt 0:00:58]} (32. Kh1 $2 Rf2 33. Nd2 (33. Rb8+ $2 Kg7 $19) 33... Rxd2 $19) 32... Ra2+ {[%emt 0:00:29]} 33. Ke1 {[%emt 0:00:01]} Rxa6 {[%emt 0:00:33]} 34. Rb6 {[%emt 0:00:31]} Ra3 {[%emt 0:06:18]} 35. Nd4 {[%emt 0:03:27]} Ra1+ {[%emt 0:00:43]} 36. Kd2 {[%emt 0:00:36]} Ra2+ {[%emt 0:01:43]} 37. Kc3 {[%emt 0:01:24]} Rxh2 $2 {[%emt 0:00:17][%mdl 8192]} (37... Ra4 $1 $11 {and Black has nothing to worry.}) 38. Nxc6 $2 {[%emt 0:00:05]} ({Only move:} 38. Rxc6 $18 Rg2 39. Rc8+ Ke7 40. Nb5 d4+ 41. Kxd4 Rd2+ 42. Kc3) 38... Rg2 $11 {[%emt 0:00:22]} 39. Rb8+ {[%emt 0:00:05]} Kg7 {[%emt 0:00:10]} 40. Ne7 {[%emt 0:04:55] aiming for Rg8+.} Rxg3+ {[%emt 0:02:26]} 41. Kd4 {[%emt 0:30:03] And now Rg8+ would win.} Rf3 {[%emt 0:30:05]} 42. c6 $2 {[%emt 0:00:04]} (42. Rg8+ $11 Kh7 43. c6 Rxf4+ 44. Kc5) 42... Rxf4+ $19 {[%emt 0:00:34]} 43. Kc5 {[%emt 0:01:42]} Rc4+ {[%emt 0:03:25]} 44. Kd6 {[%emt 0:00:05][%cal Ob8b4]} f4 $1 {[%emt 0:00:36]} 45. c7 {[%emt 0:02:09] [#]} (45. Rb3 {was the only chance.} Bg2 46. Rb8 (46. c7 $2 Rxc7 47. Kxc7 f3 $19)) 45... Rxc7 $3 {[%emt 0:00:04][%mdl 512]} 46. Kxc7 {[%emt 0:00:02]} f3 {[%emt 0:00:31] White must now prevent ...f2.} 47. Rb2 {[%emt 0:00:52]} Bg2 {[%emt 0:00:55] ...Kh6 is the strong threat.} 48. Kd6 $2 {[%emt 0:04:59]} (48. Kd7) 48... h4 $2 {[%emt 0:01:37]} (48... Kh6 $19 49. Nc6 h4) 49. Rb4 $1 $11 {[%emt 0:00:04] Threatens to win with Rg4+.} Kh6 {[%emt 0:03:05]} (49... f2 $5 50. Rg4+ Kh6 51. Ng8+ Kh7 52. Nf6+ Kh6 53. Ng8+ Kh7 54. Nf6+ Kh6 55. Ng8+ $11) 50. Rxh4+ {[%emt 0:03:17]} Kg5 {[%emt 0:00:23]} 51. Rh7 {[%emt 0:00:05]} d4 $2 {[%emt 0:02:39][%mdl 8192]} (51... f2 $11 52. Rg7+ (52. Rxf7 f1=Q $11) 52... Kh5 53. Rxf7 f1=Q 54. Rxf1 Bxf1 55. Nxd5 exd5 56. Kxd5 Kh6) 52. Rg7+ $2 {[%emt 0:04:49]} (52. Rxf7 $18 Kg4 53. Kxe6) 52... Kh6 $2 {[%emt 0:01:19][%mdl 8192]} (52... Kh4 $11 53. Rxf7 d3) 53. Rg4 $2 {[%emt 0:00:59]} (53. Rxf7 $18 d3 {[#]} 54. Nd5 $1 {[%mdl 512]}) 53... Kh5 {[%emt 0:07:56] The position is equal.} 54. Rxd4 {[%emt 0:00:02]} ({Not} 54. Rf4 $2 d3 55. Nc6 d2 $19) 54... f2 {[%emt 0:00:01]} 55. Rf4 {[%emt 0:00:10][%csl LRf2,LRf7]} f1=Q {[%emt 0:00:18]} 56. Rxf1 {[%emt 0:00:03]} Bxf1 {[%emt 0:00:02] KB-KN} 57. Ng8 {[%emt 0:01:27]} Kg6 {[%emt 0:02:42]} 58. Nf6 {[%emt 0:00:04]} Bd3 {[%emt 0:01:22]} 59. Ng8 {[%emt 0:00:25]} Bc4 {[%emt 0:00:32]} 60. Nf6 {[%emt 0:00:10]} Kf5 {[%emt 0:00:36]} 61. Ng8 {[%emt 0:00:20]} Kg6 {[%emt 0:01:40]} 62. Nf6 {[%emt 0:00:13]} Bd3 {[%emt 0:00:55]} 63. Ne8 {[%emt 0:00:08] Weighted Error Value: White=0.61/Black=0.44} 1/2-1/2

[Event "44th Chess Olympiad Open 2022"]
[Site "Chennai"]
[Date "2022.08.06"]
[Round "8.66"]
[White "Al Maashani, Amer"]
[Black "Gajadin, Dewperkash"]
[Result "1-0"]
[ECO "D03"]
[WhiteElo "1947"]
[BlackElo "1990"]
[Annotator "TA"]
[PlyCount "89"]
[EventDate "2022.07.29"]
[EventType "team-tourn"]
[EventCountry "IND"]
[SourceTitle "playchess.com"]
[Source "ChessBase"]
[SourceQuality "1"]
[WhiteTeam "OMA"]
[BlackTeam "Surinam"]
[BlackTeamCountry "SUR"]
[TimeControl "40/5400+30:1800+30"]

{[%evp 14,89,0,0,0,-8,-8,-5,0,0,0,-4,0,0,0,0,0,0,0,0,0,-12,-6,-11,0,0,7,0,0,0,0,11,0,-27,-31,-27,17,0,0,-13,0,0,0,-87,-73,-73,-69,-62,26,36,33,28,58,7,164,117,218,194,208,191,273,275,271,270,546,534,29983,29984,29984,29985,29989,29990,29990,29991,29991,29992,29992,29992]} 1. d4 {[%emt 0:00:06]} Nf6 {[%emt 0:00:11]} 2. Bg5 {[%emt 0:00:16]} e6 {[%emt 0:00:18]} 3. Nd2 {[%emt 0:00:14]} d5 {[%emt 0:01:33]} 4. e3 {[%emt 0:00:12]} h6 {[%emt 0:00:21]} 5. Bh4 {[%emt 0:00:16]} Be7 {[%emt 0:04:09]} 6. Bd3 {[%emt 0:00:19]} O-O {[%emt 0:06:57]} 7. Ngf3 {[%emt 0:02:44] has lost popularity (7.c3).} Nbd7 {[%emt 0:09:36]} 8. O-O {[%emt 0:04:19]} b6 {[%emt 0:02:06] D03: 1 d4 d5 2 Nf3 Nf6 3 Bg5, including Torre Attack with early ...d5.} 9. Re1 {[%emt 0:20:44]} Bb7 {[%emt 0:06:26]} 10. e4 {[%emt 0:02:17]} dxe4 {[%emt 0:00:50] The position is equal.} (10... Nxe4 {is interesting.} 11. Bxe7 Qxe7 12. Nxe4 dxe4 13. Bxe4 c6) 11. Nxe4 {[%emt 0:00:08]} Nxe4 {[%emt 0:07:16] [#]} 12. Bxe4 $146 {[%emt 0:02:15]} ({Predecessor:} 12. Bxe7 Qxe7 13. Bxe4 Bxe4 14. Rxe4 Nf6 {½-½ (14) Friedel,R (1691)-Riha,P (1787) Kiel 2015}) 12... Bxe4 {[%emt 0:00:40]} 13. Rxe4 {[%emt 0:00:03]} Bxh4 {[%emt 0:08:27]} 14. Rxh4 {[%emt 0:00:11]} Nf6 {[%emt 0:05:50]} 15. Qe2 {[%emt 0:04:23]} Qd5 {[%emt 0:07:16]} 16. Ne5 {[%emt 0:14:41]} Rad8 {[%emt 0:09:43]} 17. c4 {[%emt 0:06:32]} Qd6 {[%emt 0:03:21]} 18. Re1 {[%emt 0:09:53]} c5 {[%emt 0:02:14]} 19. dxc5 {[%emt 0:02:15]} Qxc5 {[%emt 0:01:31]} 20. b4 {[%emt 0:03:23]} Qd6 {[%emt 0:04:26]} 21. Rh3 {[%emt 0:01:03]} Qd2 {[%emt 0:01:10]} 22. Kf1 {[%emt 0:01:42]} Rd4 {[%emt 0:05:56]} 23. Rd3 {[%emt 0:02:33]} Rxd3 {[%emt 0:00:24]} 24. Nxd3 {[%emt 0:00:12]} Qg5 {[%emt 0:02:11]} (24... Qc3 $5 {[%cal Rc3c4]}) 25. h3 {[%emt 0:03:58]} Rd8 {[%emt 0:00:45]} 26. Qe3 {[%emt 0:02:25] Against Rd4} Qf5 {[%emt 0:00:55]} 27. Ne5 {[%emt 0:01:47]} Qc2 {[%emt 0:00:52]} 28. c5 {[%emt 0:08:34]} (28. Qb3 $11 Qf5 29. Qf3) 28... bxc5 {[%emt 0:03:13]} 29. bxc5 {[%emt 0:00:09]} Rc8 {[%emt 0:02:17]} 30. c6 {[%emt 0:01:09]} a5 {[%emt 0:01:20]} (30... Qxa2 $15 31. Kg1 Nd5) 31. Qa7 $11 {[%emt 0:00:56][%csl LRa5,LRf7]} Rf8 {[%emt 0:01:00]} 32. Qxa5 {[%emt 0:01:28] a4 is the strong threat.} Nd5 {[%emt 0:01:12]} 33. Qa3 {[%emt 0:01:43]} (33. Qa7 $14) 33... f6 $2 {[%emt 0:01:02]} (33... Rb8 $1 $11 {and Black has nothing to worry.}) 34. Rc1 $36 {[%emt 0:00:45][%mdl 2048] White is really pushing.} Qd2 {[%emt 0:00:52]} (34... Qe4 $16 35. Nd3 Rc8) 35. Nf3 {[%emt 0:01:51]} Qf4 {[%emt 0:00:33] [#]} 36. g3 $1 {[%emt 0:00:38]} Qf5 {[%emt 0:00:19]} (36... Qe4 $142 37. Kg2 Rc8) 37. Kg2 {[%emt 0:00:19]} Rc8 {[%emt 0:00:24]} 38. Qd6 {[%emt 0:00:43] Threatens to win with Qd7.} Rc7 {[%emt 0:01:02]} (38... Kf7 {might work better.} 39. c7 (39. Qd7+ Ne7 $16) 39... Ne7) 39. Rc5 {[%emt 0:01:16]} Ra7 {[%emt 0:00:45]} 40. Qb8+ {[%emt 0:00:42] White mates.} Kh7 {[%emt 0:00:28]} 41. Qxa7 {[%emt 0:30:21]} Qb1 {[%emt 0:30:33] [#]} 42. Rxd5 $1 {[%emt 0:00:18]} exd5 {[%emt 0:00:25]} 43. c7 {[%emt 0:00:13]} Qc1 {[%emt 0:00:00]} 44. Qb8 {[%emt 0:00:00]} d4 {[%emt 0:00:00]} 45. c8=Q {[%emt 0:00:00] Weighted Error Value: White=0.11 (very precise) /Black=0.42} 1-0

[Event "44th Chess Olympiad Open 2022"]
[Site "Chennai"]
[Date "2022.08.06"]
[Round "8.69"]
[White "Coulibaly, Abdoulaye"]
[Black "Stetsenko, Ilya"]
[Result "0-1"]
[ECO "B17"]
[WhiteElo "1936"]
[BlackElo "1683"]
[Annotator "TA"]
[PlyCount "120"]
[EventDate "2022.07.29"]
[EventType "team-tourn"]
[EventCountry "IND"]
[SourceTitle "playchess.com"]
[Source "ChessBase"]
[SourceQuality "1"]
[WhiteTeam "Mali"]
[BlackTeam "ARU"]
[WhiteTeamCountry "MLI"]
[TimeControl "40/5400+30:1800+30"]

{[%evp 12,120,6,12,7,-52,-52,-42,-48,-35,-25,-52,-47,-54,-43,-54,-20,-78,-43,-57,-34,-33,-17,-35,-31,-35,13,-14,0,-35,-34,-43,-29,-53,-53,-164,-93,-205,-208,-183,-185,-224,-231,-250,-264,-235,-125,-265,-265,-261,-237,-262,-256,-439,-297,-335,-327,-420,-414,-428,-421,-457,-452,-433,-421,-458,-448,-506,-508,-470,-451,-535,-529,-516,-527,-604,-595,-595,-554,-596,-547,-1349,-1494,-1081,-703,-671,-645,-718,-697,-809,-767,-866,-850,-796,-758,-851,-821,-758,-716,-702,-674,-1747,-1612,-6605,-7077,-5587,-5098,-6004,-5252,-29966,-29967]} 1. e4 {[%emt 0:00:07]} c6 {[%emt 0:00:10]} 2. d4 {[%emt 0:00:14]} d5 {[%emt 0:00:04]} 3. Nc3 {[%emt 0:00:20]} dxe4 {[%emt 0:00:04]} 4. Nxe4 {[%emt 0:00:21]} Nd7 {[%emt 0:00:11]} 5. Nf3 {[%emt 0:01:03]} Ngf6 {[%emt 0:00:05]} 6. Bd3 {[%emt 0:00:27]} Nxe4 {[%emt 0:00:04]} 7. Bxe4 {[%emt 0:00:18]} Nf6 {[%emt 0:00:03] B17: Caro-Kann: Modern Line (4...Nd7).} 8. Qd3 {[%emt 0:00:54]} (8. Bd3 $1 $11) 8... Nxe4 $15 {[%emt 0:00:04]} 9. Qxe4 {[%emt 0:00:15]} Qd5 {[%emt 0:00:06] Black is slightly better.} 10. Qf4 {[%emt 0:04:23]} Qf5 {[%emt 0:00:24]} 11. O-O {[%emt 0:02:11]} Qxc2 {[%emt 0:03:42] [#]} 12. Re1 $146 {[%emt 0:03:53]} ({Predecessor:} 12. d5 Qf5 13. dxc6 Qxf4 14. Bxf4 bxc6 15. Rac1 Bb7 16. Ne5 Rc8 17. Rfd1 f6 18. Nc4 {1-0 (52) Wirths,C (1783)-Drose,D (1557) Kranenburg 2005}) 12... Qf5 {[%emt 0:00:51]} 13. Qc7 {[%emt 0:00:56]} Qd7 {[%emt 0:11:42]} (13... Qd5 {is more complex.} 14. Ng5 f6 15. Ne4 e6) 14. Qa5 {[%emt 0:00:48]} (14. Qg3 $11 {remains equal.}) 14... b6 {[%emt 0:04:47]} (14... Qd5 {is more complex.} 15. Qc7 f6 16. a3 Qf7) 15. Qc3 {[%emt 0:00:33]} Bb7 {[%emt 0:01:00]} 16. Bf4 {[%emt 0:00:49]} e6 {[%emt 0:01:34]} 17. Ne5 {[%emt 0:01:21]} Qd5 {[%emt 0:02:29]} 18. Qg3 {[%emt 0:02:42]} g6 {[%emt 0:05:40]} (18... Qxd4 $2 19. Rad1 Qb4 20. a3 $18) (18... f6 $15 {is more appropriate.} 19. Qg4 Bc8) 19. Ng4 {[%emt 0:01:23] [#] Black must now prevent Nf6+.} Bg7 {[%emt 0:00:30] Inhibits Nf6+.} (19... Qxd4 $2 20. Rad1 Bg7 21. Rxd4 Bxd4 22. Qh4 $18) 20. Be5 {[%emt 0:01:04]} Bxe5 {[%emt 0:03:25]} 21. dxe5 {[%emt 0:00:19]} O-O-O {[%emt 0:01:18]} 22. h3 {[%emt 0:01:21]} c5 {[%emt 0:03:13]} 23. Nf6 {[%emt 0:00:25]} (23. b4 $15) 23... Qd3 {[%emt 0:03:44]} (23... Qd2 $19 24. Qc3 h5) 24. Re3 {[%emt 0:00:25]} (24. Qxd3 $17 Rxd3 25. Red1 Rxd1+ 26. Rxd1) 24... Qd2 $19 {[%emt 0:00:55]} 25. b3 {[%emt 0:07:06]} Qb2 {[%emt 0:01:50]} 26. Rae1 {[%emt 0:00:43]} Qxa2 {[%emt 0:00:53]} 27. Ne4 {[%emt 0:00:27]} Bxe4 {[%emt 0:00:33]} 28. Rxe4 {[%emt 0:00:02]} Qc2 {[%emt 0:04:12]} (28... Rd7 $19 {...Qd2 is the strong threat.} 29. b4 cxb4 30. Rxb4 Kb8) 29. Ra4 {[%emt 0:00:59] White does not recover from this.} (29. Qf3 $17 {keeps fighting.} Kb8 30. Qxf7) 29... Rd1 {[%emt 0:01:24]} 30. Rxd1 {[%emt 0:00:23]} Qxd1+ {[%emt 0:00:02][%mdl 4096] Endgame KQR-KQR} 31. Kh2 {[%emt 0:00:01]} Kb8 {[%emt 0:00:51]} 32. Qf4 $2 {[%emt 0:00:28] [#]} (32. Rf4 Qd7 33. Rf3) 32... Qd7 {[%emt 0:00:23]} 33. Ra2 {[%emt 0:00:52]} Rd8 {[%emt 0:00:30]} 34. g3 {[%emt 0:01:36]} Qc7 {[%emt 0:00:49]} 35. Qa4 {[%emt 0:04:21]} Rd5 {[%emt 0:03:18]} 36. Re2 {[%emt 0:04:21]} Qd7 {[%emt 0:01:08]} 37. Qf4 {[%emt 0:01:00]} h5 {[%emt 0:00:49]} 38. Qh6 {[%emt 0:03:02]} Kb7 {[%emt 0:02:24]} 39. Qe3 {[%emt 0:02:10]} Rd1 {[%emt 0:00:56]} 40. Qf3+ {[%emt 0:00:48]} Kb8 {[%emt 0:00:07]} 41. g4 {[%emt 0:35:49]} hxg4 {[%emt 0:31:07]} 42. hxg4 {[%emt 0:00:33]} Qb7 {[%emt 0:01:31]} 43. Qf6 {[%emt 0:05:27]} Qh1+ {[%emt 0:01:43]} 44. Kg3 {[%emt 0:00:02]} Rg1+ {[%emt 0:02:24]} 45. Kf4 {[%emt 0:00:25]} Qh6+ {[%emt 0:02:11]} 46. g5 {[%emt 0:02:45]} Qh4+ {[%emt 0:00:27]} 47. Ke3 {[%emt 0:00:00]} Qxg5+ {[%emt 0:01:48]} 48. Qxg5 {[%emt 0:00:27]} Rxg5 {[%emt 0:00:01] KR-KR} 49. Kf4 {[%emt 0:01:12]} Rf5+ {[%emt 0:00:11]} 50. Kg4 {[%emt 0:00:20]} Kc7 {[%emt 0:00:08]} 51. f4 {[%emt 0:00:03]} Rh5 {[%emt 0:00:36]} 52. Ra2 {[%emt 0:00:24]} a5 {[%emt 0:00:06]} 53. Rd2 {[%emt 0:00:22]} b5 {[%emt 0:00:30][%cal Bb6b5,Bb5c4][%mdl 32] Threatens to win with ...Rh1.} 54. Rd6 {[%emt 0:00:13]} Rf5 {[%emt 0:04:42][%cal Og6g5]} 55. Ra6 {[%emt 0:00:35]} c4 {[%emt 0:00:19]} 56. bxc4 {[%emt 0:00:16]} bxc4 {[%emt 0:00:06]} 57. Rxa5 {[%emt 0:00:30]} Kb6 {[%emt 0:00:06]} 58. Ra8 {[%emt 0:00:37]} Kc5 {[%emt 0:00:27]} 59. Rg8 {[%emt 0:00:11]} Kd4 {[%emt 0:00:53]} 60. Kf3 {[%emt 0:00:03]} g5 {[%emt 0:00:29] Weighted Error Value: White=0.57/Black=0.14 (very precise)} 0-1

[Event "44th Chess Olympiad Open 2022"]
[Site "Chennai"]
[Date "2022.08.06"]
[Round "8.69"]
[White "Pesqueira, Jose"]
[Black "Ndiaye, Amadou"]
[Result "1/2-1/2"]
[ECO "B30"]
[WhiteElo "1809"]
[BlackElo "1968"]
[Annotator "TA"]
[PlyCount "92"]
[EventDate "2022.07.29"]
[EventType "team-tourn"]
[EventCountry "IND"]
[SourceTitle "playchess.com"]
[Source "ChessBase"]
[SourceQuality "1"]
[WhiteTeam "ARU"]
[BlackTeam "Mali"]
[BlackTeamCountry "MLI"]
[TimeControl "40/5400+30:1800+30"]

{[%evp 9,92,-7,-11,-8,-7,-5,-7,-8,4,-7,16,4,18,18,64,54,62,48,58,45,58,28,39,47,76,4,4,0,24,0,43,0,0,15,8,22,89,44,342,-150,-151,-160,-152,-205,-206,-187,-106,-162,0,-208,-209,-215,-208,-232,-191,-317,-314,-294,0,-285,-284,-341,-301,-317,-308,-316,0,-327,-320,-299,-329,-324,-324,-323,-297,-335,-332,-327,-322,-307,-241,-227,0,-320,0]} 1. e4 {[%emt 0:00:05]} c5 {[%emt 0:00:06]} 2. Nc3 {[%emt 0:00:09]} g6 {[%emt 0:00:09]} 3. Bc4 {[%emt 0:01:15]} Bg7 {[%emt 0:00:12]} 4. Nf3 {[%emt 0:01:58]} Nc6 {[%emt 0:00:11]} 5. a3 {[%emt 0:00:58]} Nf6 {[%emt 0:00:38][%cal Of6e4]} 6. d3 {[%emt 0:00:17] B30: Sicilian: 2...Nc6 3 Bb5, lines without ...g6.} O-O {[%emt 0:00:45]} 7. h3 {[%emt 0:04:30]} d6 {[%emt 0:00:21]} 8. O-O {[%emt 0:00:44] The position is equal.} a6 {[%emt 0:02:53]} 9. Be3 {[%emt 0:04:18] 9.Ba2 is the modern continuation.} Bd7 {[%emt 0:08:51]} 10. Qd2 {[%emt 0:00:03]} b5 {[%emt 0:05:25]} 11. Ba2 {[%emt 0:09:01]} b4 {[%emt 0:00:00]} (11... Qc7 $11 {is superior.}) 12. axb4 $14 {[%emt 0:00:13]} cxb4 {[%emt 0:00:00] [#]} 13. Na4 $146 {[%emt 0:03:43] White is more active.} ({Predecessor:} 13. Ne2 a5 14. Bh6 Qb6 15. Bxg7 Kxg7 16. Ng3 Ne5 17. Nxe5 dxe5 18. Kh1 a4 19. Bc4 {1-0 (67) Velasquez Ojeda,C (2282)-Gutierrez,J (2014) Santiago de Chile 2008}) 13... Rb8 {[%emt 0:08:42]} 14. Bc4 {[%emt 0:10:35]} a5 {[%emt 0:09:30]} 15. Bh6 {[%emt 0:10:57]} Ne5 {[%emt 0:00:00]} 16. Nxe5 {[%emt 0:00:31]} dxe5 {[%emt 0:00:00]} 17. Bxg7 {[%emt 0:10:34]} (17. Nc5 Bxh6 18. Qxh6 Bb5 $11) (17. Be3 $16) 17... Kxg7 $11 {[%emt 0:00:00]} 18. Qe3 {[%emt 0:01:04]} Bc6 {[%emt 0:00:00]} 19. c3 {[%emt 0:17:59]} Nh5 {[%emt 0:00:00]} 20. g3 {[%emt 0:08:08]} Qd7 {[%emt 0:00:00][%csl LRa4,LRh3]} 21. Nc5 {[%emt 0:02:38][%csl LRa5,LRd7]} Qxh3 {[%emt 0:00:00]} 22. Qg5 {[%emt 0:05:52]} bxc3 {[%emt 0:00:00]} (22... Bb5 $11) 23. bxc3 {[%emt 0:01:35]} Rb2 $2 {[%emt 0:00:00][%mdl 8192]} (23... f6 $14 24. Qe3 Kh8) 24. Qh4 $2 {[%emt 0:03:32] Chess con chili.} ({White should try} 24. Qxe7 $18 Kg8 25. Qxe5) 24... Qxh4 $17 {[%emt 0:04:21]} 25. gxh4 {[%emt 0:00:01]} Ra8 $40 {[%emt 0:00:05][%mdl 128] Black attacks with force.} 26. d4 {[%emt 0:02:08]} (26. Rfb1 $17 Rxb1+ 27. Rxb1) 26... exd4 $19 {[%emt 0:03:23]} 27. cxd4 {[%emt 0:00:01]} Rc2 {[%emt 0:00:08]} (27... a4 $19 {aiming for ...Nf4.} 28. d5 Bb5) 28. Bb3 {[%emt 0:00:56]} (28. Rfc1 $17 Rxc1+ 29. Rxc1) 28... Rb2 $2 {[%emt 0:02:26]} (28... Rc3 $19 {Strongly threatening ...Nf4.} 29. Rfc1 Rh3) 29. Ba4 $2 {[%emt 0:00:25]} (29. Bc4 $11) 29... Bxa4 {[%emt 0:01:31]} 30. Rxa4 {[%emt 0:00:02]} Nf4 {[%emt 0:01:28]} 31. e5 {[%emt 0:00:53]} Nd5 {[%emt 0:03:13]} 32. Nd3 {[%emt 0:00:32]} (32. Rfa1 {was necessary.}) 32... Rb3 {[%emt 0:00:53]} 33. Nc5 {[%emt 0:00:30]} Rb2 {[%emt 0:01:17]} 34. Nd3 $1 {[%emt 0:00:18]} Rd2 {[%emt 0:00:44]} 35. Nc5 {[%emt 0:00:04]} Nc3 {[%emt 0:00:20] Against Ne4} 36. Nb3 {[%emt 0:00:45]} Rd3 {[%emt 0:02:14]} (36... Nxa4 $2 {loses.} 37. Nxd2 Nc3 38. Ra1 $19) 37. Nc1 {[%emt 0:00:26]} Rd2 $2 {[%emt 0:01:06]} (37... Nxa4 $2 {is the wrong capture.} 38. Nxd3 Rd8 39. Rb1) (37... Rh3 $19 38. Rc4 Nd5) 38. Ra3 {[%emt 0:00:46][%mdl 8192]} (38. Nb3 $11 {and White is okay.}) 38... Rc2 {[%emt 0:00:28][%cal Oc2c1] [#] Hoping for ...Rxc1!} ({Weaker is} 38... Rxd4 39. Rxc3 a4 40. Ra3 $11) 39. Nd3 {[%emt 0:00:16]} Ne2+ {[%emt 0:00:21]} 40. Kg2 {[%emt 0:00:16]} Nxd4 {[%emt 0:00:07]} 41. Rfa1 {[%emt 0:02:37]} Nf5 {[%emt 0:33:17]} 42. Ra4 {[%emt 0:02:32]} Rd8 {[%emt 0:00:00]} 43. Ne1 {[%emt 0:00:00]} Rb2 {[%emt 0:00:00]} 44. Nf3 {[%emt 0:00:00]} Ne3+ {[%emt 0:00:00]} 45. Kg3 {[%emt 0:00:00]} Nf5+ {[%emt 0:00:00]} (45... Nd1 $142 46. Rd4 Rxd4 47. Nxd4 Nxf2 48. Rxa5 Nd3) 46. Kg2 {[%emt 0:00:00]} Ne3+ $2 {[%emt 0:00:00] Weighted Error Value: White=0.59/Black=0.56} (46... Rc8 $19 47. R1a2 {[#]} Rc4 $3 {[%mdl 512]} 48. Rxa5 Rg4+ 49. Kh2 Rbb4) 1/2-1/2